[Event "HUN-ch U8-U18 2019"]
[Site "Balatonlelle"]
[Date "2019.06.23"]
[Round "3.24"]
[White "Varga, Mira Adel"]
[Black "Bodo, Boglarka"]
[Result "0-1"]
[ECO "C42"]
[WhiteElo "1133"]
[BlackElo "1646"]
[Annotator "NA"]
[PlyCount "90"]
[EventDate "2019.06.21"]
[EventType "swiss"]
[EventCountry "HUN"]
[SourceTitle "playchess.com"]
[Source "ChessBase"]
[SourceQuality "1"]
[TimeControl "40/5400+30:1800+30"]

1. e4 {[%emt 0:00:01]} e5 {[%emt 0:00:06]} 2. Nf3 {[%emt 0:00:08]} Nf6 {[%emt 0:00:09]} 3. d3 {[%emt 0:00:25]} Nc6 {[%emt 0:00:26]} 4. Nc3 {[%emt 0:00:38]} Bb4 {[%emt 0:00:13]} 5. Bg5 {[%emt 0:01:02]} h6 {[%emt 0:01:07]} 6. Bh4 {[%emt 0:00:27]} d6 {[%emt 0:04:08]} 7. Be2 {[%emt 0:02:47]} O-O 8. O-O {[%emt 0:00:19]} Bxc3 {[%emt 0:01:54]} 9. bxc3 {[%emt 0:02:09]} Re8 {[%emt 0:01:56]} 10. Nd2 {[%emt 0:00:30]} Be6 {[%emt 0:02:13]} 11. Nb3 {[%emt 0:02:01]} a6 {[%emt 0:05:07]} 12. Bf3 {[%emt 0:05:57]} g5 {[%emt 0:05:55]} 13. Bg3 {[%emt 0:00:13]} d5 {[%emt 0:05:41]} 14. Nc5 {[%emt 0:05:53]} dxe4 {[%emt 0:01:59]} 15. Nxe6 {[%emt 0:00:43]} Rxe6 {[%emt 0:00:39]} 16. dxe4 {[%emt 0:01:57]} Rd6 {[%emt 0:01:37]} 17. Qe1 {[%emt 0:01:00]} Rd2 {[%emt 0:01:54]} 18. Rc1 {[%emt 0:00:49]} Qd6 {[%emt 0:02:09]} 19. Rd1 {[%emt 0:01:40]} Rd8 {[%emt 0:01:20]} 20. Rxd2 {[%emt 0:03:20]} Qxd2 {[%emt 0:00:12]} 21. Bd1 {[%emt 0:01:57]} Qxe1 {[%emt 0:00:50]} 22. Rxe1 {[%emt 0:00:18]} Nxe4 {[%emt 0:00:13]} 23. Bf3 {[%emt 0:02:40]} Nxg3 {[%emt 0:00:28]} 24. hxg3 {[%emt 0:00:25]} f6 {[%emt 0:00:14]} 25. Bxc6 {[%emt 0:00:59]} bxc6 {[%emt 0:00:08]} 26. f3 {[%emt 0:00:43]} Rd2 {[%emt 0:00:14]} 27. Rc1 {[%emt 0:00:20]} Kf7 {[%emt 0:00:12]} 28. Kh2 {[%emt 0:00:19]} Ke6 {[%emt 0:00:17]} 29. Kh3 {[%emt 0:00:41]} h5 {[%emt 0:00:21]} 30. g4 {[%emt 0:00:50]} hxg4+ {[%emt 0:00:34]} 31. fxg4 {[%emt 0:00:10]} f5 {[%emt 0:01:44]} 32. gxf5+ {[%emt 0:01:25]} Kxf5 {[%emt 0:00:12]} 33. Kg3 {[%emt 0:00:40]} e4 {[%emt 0:02:56]} 34. Rf1+ {[%emt 0:01:50]} Ke5 {[%emt 0:00:38]} 35. Rf2 {[%emt 0:01:04]} Rxf2 {[%emt 0:03:25]} 36. Kxf2 {[%emt 0:00:07]} Kf4 {[%emt 0:00:05]} 37. g3+ {[%emt 0:03:37]} Kg4 {[%emt 0:00:07]} 38. c4 {[%emt 0:00:38]} e3+ {[%emt 0:00:50]} 39. Kg2 {[%emt 0:01:57]} e2 {[%emt 0:00:12]} 40. Kf2 {[%emt 0:00:00]} e1=Q+ {[%emt 0:00:00]} 41. Kxe1 {[%emt 0:00:15]} Kxg3 {[%emt 0:00:13]} 42. Kf1 {[%emt 0:00:08]} Kf3 {[%emt 0:00:27]} 43. c5 {[%emt 0:01:13]} Ke3 {[%emt 0:00:46]} 44. Ke1 {[%emt 0:00:32]} g4 {[%emt 0:00:08]} 45. a4 {[%emt 0:02:31]} a5 {[%emt 0:00:23]} 0-1

[Event "HUN-ch U8-U18 2019"]
[Site "Balatonlelle"]
[Date "2019.06.23"]
[Round "3.25"]
[White "Turcsanyi, Vince Gergo"]
[Black "Andras, Ferenc"]
[Result "0-1"]
[ECO "B01"]
[WhiteElo "1816"]
[BlackElo "1329"]
[Annotator "NA"]
[PlyCount "104"]
[EventDate "2019.06.21"]
[EventType "swiss"]
[EventCountry "HUN"]
[SourceTitle "playchess.com"]
[Source "ChessBase"]
[SourceQuality "1"]
[TimeControl "40/5400+30:1800+30"]

1. e4 {[%emt 0:00:11]} d5 {[%emt 0:00:15]} 2. exd5 {[%emt 0:00:16]} Qxd5 {[%emt 0:00:31]} 3. Nc3 {[%emt 0:00:17]} Qd8 {[%emt 0:00:38]} 4. Nf3 {[%emt 0:01:51]} Nf6 {[%emt 0:00:55]} 5. Bc4 {[%emt 0:03:04]} e6 {[%emt 0:05:06]} 6. d3 {[%emt 0:03:31]} Bb4 {[%emt 0:04:40]} 7. Bd2 {[%emt 0:03:10]} O-O {[%emt 0:02:43]} 8. O-O {[%emt 0:04:24]} b6 {[%emt 0:05:22]} 9. a3 {[%emt 0:03:25]} Bd6 {[%emt 0:03:05]} 10. Ne4 {[%emt 0:09:05]} Nxe4 {[%emt 0:02:51]} 11. dxe4 {[%emt 0:01:29]} Bb7 {[%emt 0:04:08]} 12. Bd3 {[%emt 0:06:01]} Nd7 {[%emt 0:02:52]} 13. b4 {[%emt 0:12:28]} c5 {[%emt 0:08:16]} 14. c3 {[%emt 0:11:16]} Qc7 {[%emt 0:11:45]} 15. h3 {[%emt 0:06:18]} Ne5 {[%emt 0:10:17]} 16. Nxe5 {[%emt 0:02:20]} Bxe5 {[%emt 0:02:41]} 17. f4 {[%emt 0:03:15]} Rfd8 {[%emt 0:06:42]} 18. Rf3 {[%emt 0:12:02]} Bf6 {[%emt 0:07:01]} 19. Rg3 {[%emt 0:10:36]} cxb4 {[%emt 0:00:50]} 20. e5 {[%emt 0:01:31]} Bh4 {[%emt 0:01:11]} 21. Bxh7+ {[%emt 0:03:16]} Kf8 {[%emt 0:03:59]} 22. Re3 {[%emt 0:00:38]} Qc5 {[%emt 0:03:16]} 23. axb4 {[%emt 0:00:32]} Qxe3+ {[%emt 0:01:08]} 24. Bxe3 {[%emt 0:00:02]} Rxd1+ {[%emt 0:00:12]} 25. Rxd1 {[%emt 0:00:00]} g6 {[%emt 0:00:20]} 26. Rd7 {[%emt 0:00:31]} Bc6 {[%emt 0:00:32]} 27. Rc7 {[%emt 0:00:11]} Be4 {[%emt 0:00:48]} 28. f5 {[%emt 0:00:40]} Bxf5 {[%emt 0:01:12]} 29. Bh6+ {[%emt 0:00:50]} Ke8 {[%emt 0:00:17]} 30. g4 {[%emt 0:00:57]} Be4 {[%emt 0:00:22]} 31. Bg8 {[%emt 0:00:16]} Be7 {[%emt 0:00:49]} 32. h4 {[%emt 0:00:41]} a5 {[%emt 0:02:45]} 33. bxa5 {[%emt 0:00:46]} bxa5 {[%emt 0:00:28]} 34. Rc4 {[%emt 0:00:31]} Bc2 {[%emt 0:00:32]} 35. Rf4 {[%emt 0:00:33]} Bc5+ {[%emt 0:00:41]} 36. Kf1 {[%emt 0:00:21]} Ra7 {[%emt 0:00:20]} 37. Ke2 {[%emt 0:00:35]} a4 {[%emt 0:00:18]} 38. Rf1 {[%emt 0:00:14]} a3 {[%emt 0:00:28]} 39. Kd2 {[%emt 0:00:48]} a2 {[%emt 0:00:47]} 40. Ra1 {[%emt 0:00:00]} Bb1 {[%emt 0:00:00]} 41. Be3 {[%emt 0:01:05]} Bxe3+ {[%emt 0:01:29]} 42. Kxe3 {[%emt 0:00:06]} Kf8 {[%emt 0:00:06]} 43. Kd4 {[%emt 0:00:54]} Kxg8 {[%emt 0:00:11]} 44. c4 {[%emt 0:00:07]} Kg7 {[%emt 0:01:02]} 45. Kc5 {[%emt 0:00:08]} f6 {[%emt 0:00:39]} 46. exf6+ {[%emt 0:03:08]} Kxf6 {[%emt 0:00:14]} 47. Kb6 {[%emt 0:00:04]} Ra4 {[%emt 0:00:11]} 48. c5 {[%emt 0:00:10]} Rxg4 {[%emt 0:00:39]} 49. c6 {[%emt 0:00:23]} Rc4 {[%emt 0:00:06]} 50. c7 {[%emt 0:00:22]} Rxc7 {[%emt 0:00:06]} 51. Kxc7 {[%emt 0:00:04]} e5 {[%emt 0:00:07]} 52. h5 {[%emt 0:00:08]} gxh5 {[%emt 0:00:08]} 0-1

[Event "HUN-ch U8-U18 2019"]
[Site "Balatonlelle"]
[Date "2019.06.23"]
[Round "3.27"]
[White "Karacsonyi, Bank"]
[Black "Giang, Tran Nam"]
[Result "0-1"]
[ECO "B40"]
[WhiteElo "1529"]
[BlackElo "2008"]
[Annotator "NA"]
[PlyCount "54"]
[EventDate "2019.06.21"]
[EventType "swiss"]
[EventCountry "HUN"]
[SourceTitle "playchess.com"]
[Source "ChessBase"]
[SourceQuality "1"]
[TimeControl "40/5400+30:1800+30"]

1. e4 {[%emt 0:00:03]} c5 {[%emt 0:00:10]} 2. Nf3 {[%emt 0:00:28]} e6 {[%emt 0:00:19]} 3. c4 {[%emt 0:00:21]} Nc6 {[%emt 0:00:14]} 4. Nc3 {[%emt 0:00:44]} e5 {[%emt 0:00:32]} 5. d3 {[%emt 0:01:19]} d6 {[%emt 0:00:10]} 6. g3 {[%emt 0:02:11]} f5 {[%emt 0:01:30]} 7. Bg2 {[%emt 0:01:57]} Nf6 {[%emt 0:00:50]} 8. Bg5 {[%emt 0:02:16]} Be7 {[%emt 0:01:01]} 9. O-O {[%emt 0:01:42]} O-O {[%emt 0:00:47]} 10. Qd2 {[%emt 0:06:32]} Be6 {[%emt 0:04:19]} 11. Bxf6 {[%emt 0:04:07]} Bxf6 {[%emt 0:00:42]} 12. Bh3 {[%emt 0:18:42]} Qd7 {[%emt 0:02:53]} 13. Nd5 {[%emt 0:02:45]} Rae8 {[%emt 0:02:21]} 14. Ng5 {[%emt 0:04:17]} Bxg5 {[%emt 0:04:02]} 15. Qxg5 {[%emt 0:00:36]} Nd4 {[%emt 0:00:55]} 16. f4 {[%emt 0:11:26]} fxe4 {[%emt 0:07:22]} 17. Bg2 {[%emt 0:11:54]} h6 {[%emt 0:03:29]} 18. Qh5 {[%emt 0:00:31]} Bxd5 {[%emt 0:09:05]} 19. cxd5 {[%emt 0:00:29]} exd3 {[%emt 0:01:04]} 20. Be4 {[%emt 0:02:27]} exf4 {[%emt 0:06:03]} 21. Qg6 {[%emt 0:00:45]} Rf6 {[%emt 0:00:40]} 22. Qh7+ {[%emt 0:00:52]} Kf7 {[%emt 0:01:09]} 23. Rxf4 {[%emt 0:00:30]} Ne2+ {[%emt 0:00:21]} 24. Kg2 {[%emt 0:00:27]} Nxf4+ {[%emt 0:00:04]} 25. gxf4 {[%emt 0:00:09]} Qg4+ {[%emt 0:00:32]} 26. Kh1 {[%emt 0:00:07]} d2 {[%emt 0:00:19]} 27. Rg1 {[%emt 0:00:12]} Qxg1+ {[%emt 0:00:18]} 0-1

[Event "HUN-ch U8-U18 2019"]
[Site "Balatonlelle"]
[Date "2019.06.23"]
[Round "3.28"]
[White "Panda, Barnabas"]
[Black "Matyassy, Lazar"]
[Result "0-1"]
[ECO "E97"]
[WhiteElo "1722"]
[BlackElo "1539"]
[Annotator "NA"]
[PlyCount "93"]
[EventDate "2019.06.21"]
[EventType "swiss"]
[EventCountry "HUN"]
[SourceTitle "playchess.com"]
[Source "ChessBase"]
[SourceQuality "1"]
[TimeControl "40/5400+30:1800+30"]

1. d4 {[%emt 0:00:02]} Nf6 {[%emt 0:00:31]} 2. c4 {[%emt 0:00:26]} g6 {[%emt 0:00:10]} 3. Nc3 {[%emt 0:00:36]} Bg7 {[%emt 0:00:09]} 4. e4 {[%emt 0:00:56]} d6 {[%emt 0:00:07]} 5. Nf3 {[%emt 0:00:56]} O-O {[%emt 0:03:08]} 6. Be2 {[%emt 0:00:37]} e5 {[%emt 0:01:06]} 7. O-O {[%emt 0:01:44]} Nc6 {[%emt 0:00:07]} 8. d5 {[%emt 0:14:27]} Ne7 {[%emt 0:02:04]} 9. b4 {[%emt 0:01:27]} a5 {[%emt 0:00:18]} 10. b5 {[%emt 0:02:39]} Nd7 {[%emt 0:02:20]} 11. Ne1 {[%emt 0:05:32]} Nc5 {[%emt 0:01:48]} 12. Nd3 {[%emt 0:01:47]} Nxd3 {[%emt 0:01:28]} 13. Bxd3 {[%emt 0:00:44]} f5 {[%emt 0:00:28]} 14. f3 {[%emt 0:03:17]} f4 {[%emt 0:01:46]} 15. Ba3 {[%emt 0:05:27]} b6 {[%emt 0:01:26]} 16. Qe1 {[%emt 0:02:09]} g5 {[%emt 0:02:28]} 17. Be2 {[%emt 0:02:19]} Ng6 {[%emt 0:02:30]} 18. g3 {[%emt 0:08:26]} Bf6 {[%emt 0:03:32]} 19. g4 {[%emt 0:04:09]} Rf7 {[%emt 0:01:08]} 20. Nb1 {[%emt 0:06:28]} h6 {[%emt 0:00:24]} 21. Nd2 {[%emt 0:00:17]} Rh7 {[%emt 0:00:29]} 22. c5 {[%emt 0:03:01]} dxc5 {[%emt 0:03:32]} 23. Nc4 {[%emt 0:01:11]} Be7 {[%emt 0:00:12]} 24. Bb2 {[%emt 0:01:33]} Bd6 {[%emt 0:00:28]} 25. Nxd6 {[%emt 0:03:38]} cxd6 {[%emt 0:00:09]} 26. a4 {[%emt 0:00:42]} Kf7 {[%emt 0:00:44]} 27. Bc4 {[%emt 0:01:36]} Bd7 {[%emt 0:01:37]} 28. Rd1 {[%emt 0:01:03]} Qf6 {[%emt 0:00:09]} 29. Bc3 {[%emt 0:00:36]} Rah8 {[%emt 0:00:49]} 30. Rf2 {[%emt 0:04:06]} Qd8 {[%emt 0:00:21]} 31. Rb1 {[%emt 0:00:30]} Qa8 {[%emt 0:02:01]} 32. Rbb2 {[%emt 0:01:14]} h5 {[%emt 0:02:21]} 33. gxh5 {[%emt 0:01:22]} Rxh5 {[%emt 0:00:09]} 34. Rb1 {[%emt 0:04:20]} Bh3 {[%emt 0:00:45]} 35. Rbb2 {[%emt 0:00:29]} Nh4 {[%emt 0:00:18]} 36. Rbd2 {[%emt 0:01:50]} Bg2 {[%emt 0:01:08]} 37. Qd1 {[%emt 0:00:53]} Bxf3 {[%emt 0:01:58]} 38. Rxf3 {[%emt 0:00:18]} Nxf3+ {[%emt 0:00:08]} 39. Qxf3 {[%emt 0:00:03]} g4 {[%emt 0:01:27]} 40. Qg2 {[%emt 0:00:00]} Rh3 {[%emt 0:00:00]} 41. Bb2 {[%emt 0:03:47]} g3 {[%emt 0:03:52]} 42. Qf1 {[%emt 0:04:26]} Qg8 {[%emt 0:02:11]} 43. Rg2 {[%emt 0:02:07]} Rxh2 {[%emt 0:01:14]} 44. Rxh2 {[%emt 0:00:28]} gxh2+ {[%emt 0:00:48]} 45. Kh1 {[%emt 0:00:11]} Qg3 {[%emt 0:00:41]} 46. Ba2 {[%emt 0:01:55]} f3 47. Qd1 0-1

[Event "HUN-ch U8-U18 2019"]
[Site "Balatonlelle"]
[Date "2019.06.23"]
[Round "3.29"]
[White "Toth, Barnabas"]
[Black "Csernyik, Mark"]
[Result "0-1"]
[ECO "B01"]
[WhiteElo "2057"]
[BlackElo "1704"]
[Annotator "NA"]
[PlyCount "102"]
[EventDate "2019.06.21"]
[EventType "swiss"]
[EventCountry "HUN"]
[SourceTitle "playchess.com"]
[Source "ChessBase"]
[SourceQuality "1"]
[TimeControl "40/5400+30:1800+30"]

1. e4 {[%emt 0:00:03]} d5 {[%emt 0:00:32]} 2. exd5 {[%emt 0:00:26]} Qxd5 {[%emt 0:00:33]} 3. Nc3 {[%emt 0:00:08]} Qd6 {[%emt 0:00:11]} 4. d4 {[%emt 0:00:07]} Nf6 {[%emt 0:00:36]} 5. Nf3 {[%emt 0:00:08]} a6 {[%emt 0:00:08]} 6. Bd3 {[%emt 0:00:02]} e6 {[%emt 0:01:21]} 7. O-O {[%emt 0:00:21]} Be7 {[%emt 0:01:54]} 8. Ne4 {[%emt 0:00:39]} Nxe4 {[%emt 0:00:41]} 9. Bxe4 {[%emt 0:00:14]} O-O {[%emt 0:00:56]} 10. c3 {[%emt 0:00:18]} Nc6 {[%emt 0:01:57]} 11. Qc2 {[%emt 0:01:22]} f5 {[%emt 0:03:42]} 12. Bd3 {[%emt 0:00:18]} b5 {[%emt 0:01:00]} 13. a3 {[%emt 0:02:07]} Bb7 {[%emt 0:03:44]} 14. Re1 {[%emt 0:01:30]} Bf6 {[%emt 0:02:24]} 15. Qb3 {[%emt 0:02:36]} Rae8 {[%emt 0:04:24]} 16. Bxf5 {[%emt 0:04:42]} Na5 {[%emt 0:03:51]} 17. Bxe6+ {[%emt 0:02:40]} Kh8 {[%emt 0:00:20]} 18. Qb4 {[%emt 0:00:50]} Bxf3 {[%emt 0:06:15]} 19. Qxd6 {[%emt 0:01:35]} cxd6 {[%emt 0:00:26]} 20. gxf3 {[%emt 0:00:13]} Nb3 {[%emt 0:02:50]} 21. Rb1 {[%emt 0:01:49]} Bxd4 {[%emt 0:08:10]} 22. Re4 {[%emt 0:10:43]} Bxf2+ {[%emt 0:05:30]} 23. Kxf2 {[%emt 0:00:57]} Nc5 {[%emt 0:00:18]} 24. Re3 {[%emt 0:01:11]} Rxe6 {[%emt 0:03:51]} 25. Rxe6 {[%emt 0:00:26]} Nxe6 {[%emt 0:00:07]} 26. Be3 {[%emt 0:00:33]} g5 {[%emt 0:00:54]} 27. Rg1 {[%emt 0:00:51]} h6 {[%emt 0:00:16]} 28. h3 {[%emt 0:01:55]} Kh7 {[%emt 0:00:38]} 29. Rd1 {[%emt 0:00:19]} Rd8 {[%emt 0:00:27]} 30. Bd4 {[%emt 0:00:46]} Kg6 {[%emt 0:00:32]} 31. Bb6 {[%emt 0:00:40]} Rd7 {[%emt 0:00:12]} 32. Ba5 {[%emt 0:00:38]} Nf4 {[%emt 0:01:51]} 33. Kg3 {[%emt 0:00:49]} Kf5 {[%emt 0:02:41]} 34. Bb4 {[%emt 0:00:38]} d5 {[%emt 0:02:05]} 35. Bc5 {[%emt 0:01:26]} h5 {[%emt 0:01:44]} 36. Be3 {[%emt 0:01:59]} h4+ {[%emt 0:01:15]} 37. Kh2 {[%emt 0:00:17]} Rd8 {[%emt 0:01:56]} 38. Bxf4 {[%emt 0:00:28]} Kxf4 {[%emt 0:00:16]} 39. Kg2 {[%emt 0:00:35]} Ke3 {[%emt 0:01:27]} 40. Rd4 {[%emt 0:00:00]} Rd6 {[%emt 0:00:00]} 41. Rg4 {[%emt 0:02:34]} d4 {[%emt 0:05:52]} 42. cxd4 {[%emt 0:13:28]} Rxd4 {[%emt 0:00:22]} 43. Rxg5 {[%emt 0:00:20]} Rd2+ {[%emt 0:00:20]} 44. Kh1 {[%emt 0:01:45]} Rxb2 {[%emt 0:01:07]} 45. f4 {[%emt 0:00:26]} Kxf4 {[%emt 0:00:25]} 46. Rg4+ {[%emt 0:00:06]} Kf3 {[%emt 0:00:21]} 47. Rxh4 {[%emt 0:00:32]} Kg3 {[%emt 0:00:13]} 48. Rb4 {[%emt 0:00:27]} Rxb4 {[%emt 0:00:17]} 49. axb4 {[%emt 0:00:13]} a5 {[%emt 0:00:53]} 50. bxa5 {[%emt 0:01:05]} b4 {[%emt 0:00:10]} 51. h4 {[%emt 0:00:26]} b3 {[%emt 0:00:15]} 0-1

[Event "HUN-ch U8-U18 2019"]
[Site "Balatonlelle"]
[Date "2019.06.23"]
[Round "3.30"]
[White "Foldes, Marton Gabor"]
[Black "Megyeri, Martin"]
[Result "1/2-1/2"]
[ECO "B33"]
[WhiteElo "1653"]
[BlackElo "1520"]
[Annotator "NA"]
[PlyCount "111"]
[EventDate "2019.06.21"]
[EventType "swiss"]
[EventCountry "HUN"]
[SourceTitle "playchess.com"]
[Source "ChessBase"]
[SourceQuality "1"]
[TimeControl "40/5400+30:1800+30"]

1. e4 {[%emt 0:00:01]} c5 {[%emt 0:00:08]} 2. Nf3 {[%emt 0:00:10]} Nc6 {[%emt 0:00:11]} 3. d4 {[%emt 0:00:18]} cxd4 {[%emt 0:00:08]} 4. Nxd4 {[%emt 0:00:07]} Nf6 {[%emt 0:00:11]} 5. Nc3 {[%emt 0:00:26]} e5 {[%emt 0:00:11]} 6. Ndb5 {[%emt 0:00:20]} d6 {[%emt 0:00:16]} 7. Bg5 {[%emt 0:00:25]} a6 {[%emt 0:00:26]} 8. Na3 {[%emt 0:00:12]} b5 {[%emt 0:00:09]} 9. Nd5 {[%emt 0:00:15]} Be7 {[%emt 0:00:13]} 10. Bxf6 {[%emt 0:00:11]} Bxf6 {[%emt 0:00:11]} 11. c4 {[%emt 0:00:13]} b4 {[%emt 0:01:59]} 12. Nc2 {[%emt 0:00:08]} a5 {[%emt 0:00:18]} 13. g3 {[%emt 0:00:19]} O-O {[%emt 0:01:49]} 14. Bg2 {[%emt 0:00:19]} Bg5 {[%emt 0:02:37]} 15. O-O {[%emt 0:00:28]} Ne7 {[%emt 0:03:55]} 16. h4 {[%emt 0:03:42]} Nxd5 {[%emt 0:02:24]} 17. Qxd5 {[%emt 0:02:18]} Be6 {[%emt 0:01:45]} 18. Qd3 {[%emt 0:00:58]} Be7 {[%emt 0:00:42]} 19. b3 {[%emt 0:02:18]} Qb6 {[%emt 0:02:01]} 20. Rad1 {[%emt 0:04:56]} Rac8 {[%emt 0:02:06]} 21. Ne3 {[%emt 0:02:42]} Qa7 {[%emt 0:03:41]} 22. Kh1 {[%emt 0:02:40]} Kh8 {[%emt 0:07:57]} 23. Nd5 {[%emt 0:03:26]} Bxd5 {[%emt 0:03:39]} 24. Qxd5 {[%emt 0:01:08]} Rc5 {[%emt 0:00:38]} 25. Qd2 {[%emt 0:02:05]} Rb8 {[%emt 0:04:02]} 26. f4 {[%emt 0:04:29]} Rd8 {[%emt 0:02:42]} 27. fxe5 {[%emt 0:00:56]} f6 {[%emt 0:04:19]} 28. exf6 {[%emt 0:11:07]} Bxf6 {[%emt 0:02:13]} 29. Qf4 {[%emt 0:01:15]} Qe7 {[%emt 0:01:17]} 30. g4 {[%emt 0:05:57]} Be5 {[%emt 0:02:16]} 31. Qf2 {[%emt 0:00:46]} Rcc8 {[%emt 0:02:08]} 32. g5 {[%emt 0:02:40]} Rf8 {[%emt 0:00:53]} 33. Qe3 {[%emt 0:04:42]} Rxf1+ {[%emt 0:04:03]} 34. Bxf1 {[%emt 0:09:26]} Rf8 {[%emt 0:01:54]} 35. Kg1 {[%emt 0:04:44]} Bf4 {[%emt 0:03:14]} 36. Qe2 {[%emt 0:03:59]} Bg3 {[%emt 0:02:56]} 37. Qg4 {[%emt 0:10:12]} Be5 {[%emt 0:01:48]} 38. Bg2 {[%emt 0:02:14]} Qa7+ {[%emt 0:06:31]} 39. Kh1 {[%emt 0:00:12]} Qe7 {[%emt 0:03:43]} 40. Rd3 {[%emt 0:00:00]} Qe8 {[%emt 0:00:00]} 41. Rh3 {[%emt 0:17:12]} Rf4 {[%emt 0:09:58]} 42. Qe2 {[%emt 0:09:38]} Qf8 {[%emt 0:01:09]} 43. h5 {[%emt 0:03:52]} Rf2 {[%emt 0:02:58]} 44. Rf3 {[%emt 0:00:26]} Qxf3 {[%emt 0:01:50]} 45. Qxf3 {[%emt 0:01:37]} Rxf3 {[%emt 0:00:22]} 46. Bxf3 {[%emt 0:00:05]} Bf4 {[%emt 0:00:45]} 47. g6 {[%emt 0:00:13]} h6 {[%emt 0:00:32]} 48. Kg2 {[%emt 0:00:10]} Kg8 {[%emt 0:00:26]} 49. Kh3 {[%emt 0:00:29]} Kf8 {[%emt 0:00:25]} 50. Kg4 {[%emt 0:00:07]} Be5 {[%emt 0:00:20]} 51. Kf5 {[%emt 0:00:11]} Ke7 {[%emt 0:00:15]} 52. c5 {[%emt 0:02:28]} Bd4 {[%emt 0:00:44]} 53. c6 {[%emt 0:04:28]} Bb6 {[%emt 0:00:12]} 54. Be2 {[%emt 0:00:36]} Bc7 {[%emt 0:01:32]} 55. Bc4 {[%emt 0:01:23]} Bb6 {[%emt 0:00:35]} 56. e5 {[%emt 0:03:14]} 1/2-1/2

[Event "HUN-ch U8-U18 2019"]
[Site "Balatonlelle"]
[Date "2019.06.23"]
[Round "3.31"]
[White "Varga, Boldizsar"]
[Black "Pasti, Zsombor"]
[Result "0-1"]
[ECO "C47"]
[WhiteElo "1804"]
[BlackElo "1641"]
[Annotator "NA"]
[PlyCount "76"]
[EventDate "2019.06.21"]
[EventType "swiss"]
[EventCountry "HUN"]
[SourceTitle "playchess.com"]
[Source "ChessBase"]
[SourceQuality "1"]
[TimeControl "40/5400+30:1800+30"]

1. e4 {[%emt 0:00:03]} e5 {[%emt 0:00:04]} 2. Nf3 {[%emt 0:00:11]} Nc6 {[%emt 0:00:09]} 3. Bc4 {[%emt 0:00:09]} Nf6 {[%emt 0:00:05]} 4. Nc3 {[%emt 0:00:22]} Bb4 {[%emt 0:00:35]} 5. O-O {[%emt 0:00:33]} d6 {[%emt 0:00:03]} 6. h3 {[%emt 0:00:17]} Bxc3 {[%emt 0:00:05]} 7. dxc3 {[%emt 0:00:15]} Nxe4 {[%emt 0:00:05]} 8. Qd5 {[%emt 0:01:48]} Be6 {[%emt 0:03:39]} 9. Qxe4 {[%emt 0:00:52]} d5 {[%emt 0:00:21]} 10. Qe2 {[%emt 0:00:35]} dxc4 11. Nxe5 {[%emt 0:00:40]} O-O {[%emt 0:00:21]} 12. Nxc6 {[%emt 0:00:53]} bxc6 {[%emt 0:00:06]} 13. Bf4 {[%emt 0:02:15]} Re8 {[%emt 0:00:34]} 14. Qf3 {[%emt 0:02:24]} Bd5 {[%emt 0:00:38]} 15. Qg3 {[%emt 0:00:38]} Re6 {[%emt 0:10:27]} 16. f3 {[%emt 0:04:56]} Rg6 {[%emt 0:00:31]} 17. Qf2 {[%emt 0:01:30]} Qd7 {[%emt 0:04:21]} 18. Kh2 {[%emt 0:02:29]} Be6 {[%emt 0:01:57]} 19. Rad1 {[%emt 0:01:19]} Qc8 {[%emt 0:00:26]} 20. Qh4 {[%emt 0:01:32]} Bf5 {[%emt 0:01:51]} 21. Rd2 {[%emt 0:01:06]} Re6 {[%emt 0:06:27]} 22. Rfd1 {[%emt 0:00:35]} f6 {[%emt 0:02:02]} 23. Rd8+ {[%emt 0:06:31]} Qxd8 {[%emt 0:00:23]} 24. Rxd8+ {[%emt 0:00:11]} Rxd8 {[%emt 0:00:06]} 25. Qf2 {[%emt 0:01:19]} Rde8 {[%emt 0:01:09]} 26. Qxa7 {[%emt 0:01:00]} Re2 {[%emt 0:00:55]} 27. Qxc7 {[%emt 0:00:33]} Rxc2 {[%emt 0:00:13]} 28. Qxc6 {[%emt 0:00:27]} Ree2 {[%emt 0:00:16]} 29. Qxc4+ {[%emt 0:02:39]} Be6 {[%emt 0:00:08]} 30. Qd3 {[%emt 0:01:48]} Rxg2+ {[%emt 0:00:20]} 31. Kh1 {[%emt 0:00:43]} g5 {[%emt 0:01:29]} 32. Bd2 Rcxd2 {[%emt 0:00:54]} 33. Qe3 {[%emt 0:08:24]} Rh2+ {[%emt 0:00:10]} 34. Kg1 {[%emt 0:00:14]} Rdg2+ {[%emt 0:00:04]} 35. Kf1 {[%emt 0:01:43]} Bc4+ {[%emt 0:00:05]} 36. Ke1 {[%emt 0:00:58]} Re2+ {[%emt 0:00:37]} 37. Qxe2 {[%emt 0:00:25]} Rxe2+ {[%emt 0:00:04]} 38. Kd1 {[%emt 0:00:08]} Rxb2 {[%emt 0:00:07]} 0-1

[Event "HUN-ch U8-U18 2019"]
[Site "Balatonlelle"]
[Date "2019.06.23"]
[Round "3.32"]
[White "Vadkerti, Vince"]
[Black "Lehocz, Jozsef Jr."]
[Result "0-1"]
[ECO "B01"]
[WhiteElo "1558"]
[BlackElo "1382"]
[Annotator "NA"]
[PlyCount "90"]
[EventDate "2019.06.21"]
[EventType "swiss"]
[EventCountry "HUN"]
[SourceTitle "playchess.com"]
[Source "ChessBase"]
[SourceQuality "1"]
[TimeControl "40/5400+30:1800+30"]

1. e4 {[%emt 0:00:07]} d5 {[%emt 0:00:06]} 2. exd5 {[%emt 0:00:13]} Qxd5 {[%emt 0:00:08]} 3. Nc3 {[%emt 0:00:17]} Qd6 {[%emt 0:00:06]} 4. d4 {[%emt 0:00:33]} Nf6 {[%emt 0:01:09]} 5. Nf3 {[%emt 0:00:57]} Bg4 {[%emt 0:00:10]} 6. h3 {[%emt 0:01:32]} Bh5 {[%emt 0:00:08]} 7. Be2 {[%emt 0:00:51]} e6 {[%emt 0:00:49]} 8. Be3 {[%emt 0:12:07]} c6 {[%emt 0:00:45]} 9. Qd2 {[%emt 0:01:16]} Bxf3 {[%emt 0:01:40]} 10. Bxf3 {[%emt 0:00:10]} Nbd7 {[%emt 0:00:11]} 11. O-O {[%emt 0:02:44]} Be7 {[%emt 0:00:59]} 12. Rfe1 {[%emt 0:01:59]} O-O {[%emt 0:00:24]} 13. a3 {[%emt 0:01:56]} Nb6 {[%emt 0:00:18]} 14. Bf4 {[%emt 0:01:58]} Qd7 {[%emt 0:00:15]} 15. Be2 {[%emt 0:03:28]} Rad8 {[%emt 0:01:24]} 16. Rad1 {[%emt 0:02:54]} Nbd5 {[%emt 0:04:56]} 17. Nxd5 {[%emt 0:05:39]} Nxd5 {[%emt 0:00:15]} 18. Bh2 {[%emt 0:01:03]} Bf6 {[%emt 0:00:35]} 19. c3 {[%emt 0:04:43]} Ne7 {[%emt 0:00:49]} 20. g4 {[%emt 0:04:10]} g6 {[%emt 0:00:51]} 21. g5 {[%emt 0:01:26]} Bg7 {[%emt 0:00:15]} 22. Bd3 {[%emt 0:04:11]} e5 {[%emt 0:01:09]} 23. Qe3 {[%emt 0:03:46]} Nd5 {[%emt 0:00:36]} 24. Qf3 {[%emt 0:03:43]} exd4 {[%emt 0:00:31]} 25. c4 {[%emt 0:02:44]} Nc7 {[%emt 0:01:34]} 26. h4 {[%emt 0:04:50]} Ne6 {[%emt 0:01:26]} 27. Qe4 {[%emt 0:05:23]} Nc5 {[%emt 0:00:42]} 28. Qe2 {[%emt 0:02:45]} Rfe8 {[%emt 0:00:27]} 29. Qc2 {[%emt 0:02:16]} Qg4+ {[%emt 0:01:25]} 30. Bg3 {[%emt 0:01:02]} Be5 {[%emt 0:00:34]} 31. Be2 {[%emt 0:02:38]} Qd7 {[%emt 0:01:38]} 32. f4 {[%emt 0:04:58]} Bc7 {[%emt 0:00:18]} 33. Bf2 {[%emt 0:03:05]} d3 {[%emt 0:00:34]} 34. Qb1 {[%emt 0:02:51]} Rxe2 {[%emt 0:02:41]} 35. Rxe2 {[%emt 0:00:36]} Qg4+ {[%emt 0:00:06]} 36. Kh1 {[%emt 0:01:47]} Qxe2 {[%emt 0:00:42]} 37. Bxc5 {[%emt 0:01:10]} Bxf4 {[%emt 0:00:12]} 38. Kg1 {[%emt 0:01:38]} Qg4+ {[%emt 0:01:23]} 39. Kf1 {[%emt 0:02:50]} Qh3+ {[%emt 0:00:41]} 40. Kg1 {[%emt 0:00:00]} Bh2+ {[%emt 0:00:00]} 41. Kf2 {[%emt 0:04:07]} Bg3+ {[%emt 0:01:24]} 42. Ke3 {[%emt 0:01:47]} Bd6+ {[%emt 0:00:17]} 43. Kd2 {[%emt 0:04:07]} Bxc5 {[%emt 0:00:09]} 44. Re1 {[%emt 0:03:10]} Qg2+ {[%emt 0:00:28]} 45. Kc3 {[%emt 0:01:30]} d2 {[%emt 0:01:48] Kd4} 0-1